bitfinex/quotes_ETHUSD_20241120
["timestamp","ask_amount","ask_price","bid_price","bid_amount"]
[1732133605506,3.27289,3055.4,3054.7,3.27355]
[1732133605740,0.03002634,3055.3,3054.9,3.27337]
[1732133605922,3.27287,3055.5,3054.9,3.27337]
[1732133606236,0.03004752,3055.4,3054.9,3.27337]
[1732133606534,0.03004752,3055.4,3055.0,0.8231]
[1732133606684,0.1318,3055.6,3055.0,0.8231]
[1732133606888,3.27296,3055.4,3055.0,0.8231]
[1732133607089,0.03002694,3055.3,3054.7,0.8231]
[1732133607290,0.03002694,3055.3,3054.4,6.27396]
[1732133607291,3.27339,3055.0,3054.4,0.8231]
[1732133607527,0.03208794,3054.9,3054.4,4.09706]
[1732133607742,0.03208794,3054.9,3054.4,4.6376289]
[1732133608402,0.03208794,3054.9,3054.4,4.6375589]
[1732133608600,0.03208794,3054.9,3054.4,1.3636689]
[1732133608841,0.03208794,3054.9,3054.5,3.2738]
[1732133609345,0.03208794,3054.9,3054.6,3.27374]
[1732133609639,0.03208794,3054.9,3054.6,0.03273502]
[1732133609809,0.03208794,3054.9,3054.8,4.08493]
[1732133609992,0.1318,3055.6,3054.8,0.8114]
[1732133610192,0.1318,3055.9,3055.2,3.27309]
[1732133610391,0.03005025,3055.5,3055.2,3.27303]
[1732133610633,0.1318,3055.9,3054.8,0.8114]
[1732133610847,0.1318,3055.9,3055.0,3.27329]
[1732133610848,0.03219694,3055.4,3055.0,3.27329]
[1732133611136,3.27275,3055.6,3055.0,3.27329]
[1732133611137,0.03217489,3055.3,3055.0,3.27329]
[1732133611339,6.54551,3055.6,3055.0,3.27329]
[1732133611545,3.30502301,3055.5,3055.0,3.27329]
[1732133611754,3.30502301,3055.5,3054.9,3.27332]
[1732133613006,3.30502301,3055.5,3055.0,3.27331]
[1732133613857,3.27298,3055.4,3054.8,4.08486]
[1732133614070,3.27298,3055.4,3054.9,3.37558919]
[1732133614362,0.03220294,3055.3,3054.9,3.27342]
[1732133614663,0.03220294,3055.3,3054.9,3.27337]
[1732133615068,0.1318,3055.9,3055.0,0.10217023]
[1732133615365,0.03217516,3055.2,3055.0,0.16494142]
[1732133615675,3.273,3055.3,3054.8,4.08492]
[1732133615963,0.03217261,3055.2,3054.9,0.1021729]
[1732133616164,3.273,3055.3,3054.8,0.8114]
[1732133616375,3.30537055,3055.1,3054.5,4.08518]
[1732133616537,3.27322,3055.1,3054.6,0.10217876]
[1732133616739,0.03210938,3055.0,3054.7,0.10217876]
[1732133616958,3.30543938,3055.0,3054.5,4.793688]
[1732133617265,3.30543938,3055.0,3054.6,0.10218374]
[1732133617472,3.30543938,3055.0,3054.7,0.10218374]
[1732133617633,0.03210938,3055.0,3054.5,4.793688]
[1732133617831,0.03210938,3055.0,3054.6,0.10218432]
[1732133618046,3.27349,3054.9,3054.7,0.10218432]
[1732133618357,3.27349,3054.9,3054.3,3.274]
[1732133618358,0.03204676,3054.8,3054.5,3.27384]
[1732133618556,0.03204676,3054.8,3054.3,3.27407]
[1732133618557,0.03204676,3054.8,3054.7,4.08504]
[1732133618737,0.1318,3055.6,3054.7,1.219904]
[1732133618738,3.27332,3055.0,3054.7,1.219904]
[1732133618942,0.0299309,3054.9,3054.7,0.8114]
[1732133619467,0.0299309,3054.9,3054.7,4.08498]
[1732133619680,0.0299309,3054.9,3054.8,0.10217544]
[1732133620170,3.27311,3055.2,3054.8,3.37570544]
[1732133620389,3.27311,3055.2,3054.9,0.10217544]
[1732133620529,3.40454,3055.6,3054.8,0.41871054]
[1732133620729,3.27247,3055.8,3055.3,3.27292]
[1732133620927,3.40424,3055.9,3055.3,3.27292]
[1732133621130,3.40424,3055.9,3055.4,0.10216047]
[1732133621131,3.27273,3055.6,3055.4,0.10216047]
[1732133621374,3.27278,3055.5,3054.9,4.08476]
[1732133621604,3.27278,3055.5,3055.0,3.681776]
[1732133621982,3.27278,3055.5,3055.0,3.78393947]
[1732133622293,3.27278,3055.5,3055.1,0.10216347]
[1732133623190,3.27268,3055.6,3055.1,3.37536347]
[1732133623397,0.472224,3055.9,3055.2,0.10216347]
[1732133623593,3.27261,3055.7,3055.2,3.27307]
[1732133623778,3.27261,3055.7,3055.1,0.4493136]
[1732133623779,3.27274,3055.6,3055.1,3.7225236]
[1732133623992,3.27274,3055.6,3055.2,0.10216244]
[1732133624190,3.27278,3055.5,3055.1,3.27321]
[1732133624369,3.27278,3055.5,3055.2,0.10216334]
[1732133624567,3.27278,3055.5,3055.1,3.27321]
[1732133624755,3.27278,3055.5,3055.2,0.10216363]
[1732133624956,0.03005642,3055.4,3055.1,3.27321]
[1732133625301,0.03005642,3055.4,3055.2,0.10216381]
[1732133625611,3.27273,3055.6,3055.1,3.68494389]
[1732133625776,0.03003584,3055.3,3055.2,0.10216317]
[1732133625978,3.27273,3055.6,3055.2,0.10216317]
[1732133626192,0.03003584,3055.3,3055.2,0.37870371]
[1732133626471,3.27241,3055.9,3055.4,3.27287]
[1732133626707,3.27241,3055.9,3055.5,0.327287]
[1732133626868,0.03015657,3055.8,3055.4,3.27287]
[1732133627381,3.27275,3055.6,3055.2,0.37870371]
[1732133627582,3.27275,3055.6,3055.0,3.27326]
[1732133627892,0.03012814,3055.5,3055.1,3.37537538]
[1732133628072,0.03012814,3055.5,3055.1,3.27321]
[1732133628272,0.03012814,3055.5,3055.2,0.10216207]
[1732133628616,0.03012814,3055.5,3055.1,4.01921154]
[1732133628775,0.03012814,3055.5,3055.2,0.10216291]
[1732133628971,0.03012814,3055.5,3054.9,0.8114]
[1732133629178,3.27321,3055.1,3055.0,0.10216331]
[1732133629424,3.27349,3054.9,3054.3,4.0819]
[1732133629594,3.27332,3055.0,3054.4,0.10218222]
[1732133629913,0.03209775,3054.8,3054.7,3.27364]
[1732133630118,3.30342849,3054.9,3054.4,3.27391]
[1732133630316,3.30342849,3054.9,3054.3,4.08191]
[1732133630317,0.0299579,3054.8,3054.5,4.11159532]
[1732133630525,0.0299579,3054.8,3054.6,0.10218332]
[1732133630718,3.27341,3055.0,3054.5,3.27383]
[1732133630881,0.03207569,3054.7,3054.6,0.10218228]
[1732133631076,3.2733,3055.1,3054.6,3.37593228]
[1732133631281,0.03204447,3054.7,3054.6,3.61135123]
[1732133631515,3.27302,3055.3,3054.8,3.27351]
[1732133631723,3.2729,3055.4,3055.0,3.27331]
[1732133632016,3.4046,3055.5,3055.0,3.27331]
[1732133632224,3.40442,3055.7,3055.0,3.27323]
[1732133632428,3.40442,3055.7,3055.1,3.37537512]
[1732133632611,3.27216,3056.1,3055.2,0.81533017]
[1732133632853,3.27234,3056.0,3055.4,3.27284]
[1732133633237,3.27236,3055.9,3055.4,3.27284]
[1732133633462,3.27236,3055.9,3055.4,3.27289]
[1732133633635,3.27216,3056.1,3055.3,3.273]
[1732133633961,3.27231,3056.0,3055.4,3.27289]
[1732133634118,3.27231,3056.0,3055.5,3.27277]
[1732133634320,3.27239,3055.9,3055.3,7.02574205]
[1732133634520,3.27239,3055.9,3055.4,0.10215603]
[1732133634755,3.27239,3055.9,3055.3,7.02574205]
[1732133634934,3.27255,3055.8,3055.4,0.1021522]
[1732133635133,3.27255,3055.8,3055.3,0.47987205]
[1732133635347,3.27255,3055.8,3055.4,0.10215347]
[1732133635527,3.27236,3055.9,3055.4,3.27287]
[1732133635858,3.27226,3056.0,3055.3,3.75285205]
[1732133636165,3.27253,3055.8,3055.3,3.75285205]
[1732133638052,3.2727,3055.6,3055.2,0.7826]
[1732133638318,3.744236,3056.2,3055.2,0.7826]
[1732133638557,3.744236,3056.2,3055.3,0.10215874]
[1732133638864,3.2725,3055.8,3055.2,4.05563]
[1732133639013,3.27264,3055.7,3055.2,4.0557]
[1732133639359,0.3744236,3056.1,3055.2,4.0557]
[1732133639523,3.27252,3055.8,3055.3,0.10215618]
[1732133639718,6.54459,3056.0,3055.3,3.27291]
[1732133640029,3.30261809,3055.9,3055.4,0.10215505]
[1732133640230,3.27249,3055.8,3055.3,3.27291]
[1732133640433,3.30267751,3055.8,3055.4,0.10215567]
[1732133640641,3.27257,3055.7,3055.3,3.27291]
[1732133640958,3.27257,3055.7,3055.2,0.7826]
[1732133640959,3.30273694,3055.7,3055.2,0.7826]
[1732133641120,3.27289,3055.4,3055.3,0.10215712]
[1732133641445,3.3029952,3055.4,3054.9,4.05335]
[1732133641620,3.273,3055.3,3055.0,0.42949822]
[1732133641819,3.273,3055.3,3054.9,4.05341]
[1732133641820,0.0300834,3055.3,3054.9,4.05341]
[1732133642123,3.3030834,3055.3,3054.9,0.78]
[1732133642321,0.0300834,3055.3,3054.9,4.05335]
[1732133642521,0.0300834,3055.3,3054.9,4.82215651]
[1732133642721,3.27278,3055.5,3054.9,4.82215651]
[1732133642928,3.27278,3055.5,3055.0,0.10216986]
[1732133644631,0.03005369,3055.3,3054.9,4.05335]
[1732133644924,0.1318,3055.9,3054.9,4.05335]
[1732133644925,3.27262,3055.7,3055.1,3.27313]
[1732133645128,0.04360017,3055.2,3055.0,3.27322]
[1732133645423,3.27262,3055.7,3055.2,3.27304]
[1732133645648,3.27262,3055.7,3055.3,0.34079343]
[1732133645853,3.27262,3055.7,3055.2,3.27304]
[1732133646248,3.27262,3055.7,3055.3,0.10215734]
[1732133646467,3.40419,3055.9,3055.4,3.27287]
[1732133646620,3.27262,3055.7,3055.4,1.405091]
[1732133646826,3.27262,3055.7,3055.0,0.45607194]
[1732133646827,3.27262,3055.7,3055.1,4.0539]
[1732133647021,3.27242,3055.9,3055.2,3.4079606]
[1732133647265,3.27217,3056.1,3055.6,3.27265]
[1732133647433,3.27217,3056.1,3055.6,4.05335]
[1732133647948,3.27217,3056.1,3055.6,0.7807]
[1732133648153,3.27226,3056.0,3055.6,0.7807]
[1732133648551,3.27241,3055.9,3055.6,0.7807]
[1732133648760,3.27224,3056.1,3055.6,0.7807]
[1732133648926,3.2723,3056.0,3055.6,0.7807]
[1732133649132,3.27241,3055.9,3055.6,0.7807]
[1732133649475,0.340367,3056.2,3055.3,0.821]
[1732133649771,3.27261,3055.7,3055.3,0.821]
[1732133649966,3.27261,3055.7,3055.2,3.27305]
[1732133649967,3.40443,3055.7,3055.0,0.821]
[1732133650182,3.27267,3055.6,3054.9,3.2734]
[1732133650469,3.27289,3055.4,3055.0,0.10217166]
[1732133650642,3.27289,3055.4,3054.9,3.2734]
[1732133650965,3.13382474,3055.3,3055.0,0.10217175]
[1732133651176,3.27385,3054.6,3054.3,0.7843]
[1732133651474,0.86811858,3055.3,3054.4,0.10217452]
[1732133651648,3.27351,3054.9,3054.4,0.2092929]
[1732133651828,3.27354,3054.8,3054.3,4.0583]
[1732133652941,3.27335,3055.0,3054.3,4.0583]
[1732133653139,3.27349,3054.9,3054.3,4.0583]
[1732133653363,3.27349,3054.9,3054.4,3.8106229]
[1732133653561,3.27327,3055.1,3054.4,0.5366929]
[1732133653789,3.27333,3055.0,3054.5,3.27385]
[1732133654080,3.27348,3054.9,3054.3,0.7843]
[1732133654281,3.27332,3055.0,3054.4,3.2739]
[1732133654459,3.27332,3055.0,3054.4,6.7570629]
[1732133654674,3.27332,3055.0,3054.5,3.27383]
[1732133654968,3.27345,3054.9,3054.4,3.4831629]
[1732133655132,0.03943226,3054.9,3054.5,0.42674629]
[1732133655984,3.27366,3054.7,3054.4,0.2092929]
[1732133656289,0.03943226,3054.9,3054.4,0.2092929]
[1732133656290,0.03934479,3054.6,3054.4,0.2092929]
[1732133656506,3.27348,3054.9,3054.4,0.2092929]
[1732133656784,3.27328,3055.1,3054.5,4.02799029]
[1732133656998,0.0433455,3054.8,3054.7,3.27364]
[1732133657361,3.40485,3055.3,3054.7,3.27364]
[1732133657576,3.40486,3055.3,3054.8,0.654733]
[1732133657773,3.40486,3055.3,3054.7,3.27358]
[1732133658358,3.40486,3055.3,3054.8,3.27353]
[1732133658609,3.40486,3055.3,3054.8,0.654723]
[1732133658961,3.40486,3055.3,3054.8,3.928223]
[1732133659402,3.40486,3055.3,3054.5,7.02997503]
[1732133659403,3.27327,3055.1,3054.5,7.02997503]
[1732133659901,3.27327,3055.1,3054.5,3.75618503]
[1732133660088,3.27327,3055.1,3054.5,0.75416029]
[1732133660285,3.27352,3054.9,3054.5,0.75416029]
[1732133660614,3.27353,3054.8,3054.4,0.2092929]
[1732133660898,3.27366,3054.7,3054.4,0.2092929]
[1732133661067,3.27352,3054.9,3054.4,0.2092929]
[1732133661259,3.27346,3054.9,3054.4,3.4832429]
[1732133661616,6.54698,3054.9,3054.4,3.4832429]
[1732133661799,3.27335,3055.0,3054.5,3.27382]
[1732133661991,3.27335,3055.0,3054.5,0.42675429]
[1732133662165,3.27327,3055.1,3054.5,0.42675429]
[1732133662166,3.27343,3054.9,3054.5,0.42675429]
[1732133662369,3.27327,3055.1,3054.5,3.70059429]
[1732133662701,0.1318,3055.7,3054.8,3.00202474]
[1732133663002,3.27296,3055.4,3054.7,4.04878]
[1732133663174,3.27296,3055.4,3054.8,0.47671567]
[1732133663375,3.27302,3055.3,3054.8,3.75023567]
[1732133664262,3.27311,3055.2,3054.8,0.47671567]
[1732133665030,0.1318,3055.7,3055.1,3.00202474]
[1732133665162,3.27214,3056.1,3055.2,0.8267]
[1732133665363,6.54529,3055.7,3055.2,0.8267]
[1732133665596,3.27273,3055.6,3055.2,0.8267]
[1732133665864,0.04363086,3055.6,3055.2,1.236687]
[1732133666066,3.31631086,3055.6,3055.2,1.236687]
[1732133666400,0.04363086,3055.6,3055.2,4.509767]
[1732133667277,0.04363086,3055.6,3055.3,3.7239467]
[1732133667479,3.27262,3055.7,3055.3,0.4509767]
[1732133667679,0.0363742,3055.5,3055.2,0.8267]
[1732133667880,3.0,3056.1,3054.9,0.8267]
[1732133668207,0.03965289,3055.4,3054.9,0.8267]
[1732133668414,3.27297,3055.4,3054.9,0.8267]
[1732133668562,0.03962482,3055.3,3055.0,0.71021947]
[1732133668767,0.03962482,3055.3,3054.9,0.8267]
[1732133669065,0.03962482,3055.3,3054.9,4.10008]
[1732133669674,3.2727,3055.6,3055.1,3.2732]
[1732133669870,0.84245608,3056.8,3055.5,3.00202474]
[1732133670065,3.27174,3056.5,3055.9,3.27226]
[1732133670306,3.27204,3056.2,3055.7,3.27251]
[1732133670617,3.27225,3056.0,3055.6,0.8267]
[1732133670784,3.27225,3056.0,3055.3,3.27297]
[1732133670785,3.27213,3056.2,3055.3,4.09962]
[1732133670984,0.1318,3056.3,3055.4,0.327297]
[1732133671209,3.27238,3055.9,3055.4,3.600177]
[1732133671512,0.1318,3056.3,3055.6,3.27267]
[1732133671707,3.40378,3056.3,3055.8,3.00202474]
[1732133672019,3.40378,3056.3,3055.8,3.27238]
[1732133672020,0.1318,3056.3,3055.8,3.27238]
[1732133672506,0.1318,3056.3,3055.9,6.54464]
[1732133672712,3.40374,3056.3,3055.7,3.27248]
[1732133672925,3.40374,3056.3,3055.7,6.54498]
[1732133673071,0.1318,3056.3,3055.9,3.27231]
[1732133673708,3.40373,3056.3,3055.7,3.27248]
[1732133674241,0.1318,3056.3,3055.8,3.2724]
[1732133674424,3.27188,3056.4,3055.9,3.27235]
[1732133675208,3.27177,3056.5,3055.9,3.27227]
[1732133675409,6.67518,3056.6,3055.9,3.27226]
[1732133675567,3.40348,3056.6,3056.0,3.27223]
[1732133675775,0.1318,3056.9,3056.1,3.03474638]
[1732133676028,0.1318,3056.9,3056.3,3.27186]
[1732133676525,3.30297107,3056.8,3056.1,6.54416]
[1732133676685,3.27156,3056.7,3056.1,3.27205]
[1732133677198,0.031507,3056.6,3056.2,3.27197]
[1732133677596,3.27142,3056.8,3056.2,3.27197]
[1732133677813,0.03150789,3056.5,3056.2,3.27197]
[1732133678054,0.03148585,3056.4,3056.2,3.272]
[1732133678253,3.27153,3056.7,3056.2,3.272]
[1732133678405,0.03152992,3056.6,3056.2,3.272]
[1732133679173,0.1318,3056.9,3056.5,3.2717]
[1732133679342,0.1318,3057.1,3056.4,0.8267]
[1732133679509,0.1318,3057.1,3056.4,4.09851]
[1732133679914,0.1318,3057.1,3056.6,3.27154]
[1732133680216,3.40293,3057.1,3056.5,3.27171]
[1732133680540,3.40293,3057.1,3056.6,3.27151]
[1732133680541,0.1318,3057.1,3056.6,3.27151]
[1732133680755,3.27097,3057.2,3056.7,3.27148]
[1732133681067,3.40238,3057.6,3056.8,3.27133]
[1732133681360,0.1318,3057.6,3057.1,3.27106]
[1732133681707,0.1318,3057.6,3057.0,3.27117]
[1732133681708,3.40234,3057.6,3057.0,3.27117]
[1732133682349,3.27064,3057.5,3057.0,3.27117]
[1732133682561,0.1318,3057.6,3057.0,6.54228]
[1732133682763,3.4024,3057.6,3057.0,3.27111]
[1732133683258,3.4024,3057.6,3057.0,6.54222]
[1732133683468,0.1318,3057.6,3057.0,3.27111]
[1732133683747,3.27043,3057.7,3057.2,3.27096]
[1732133683967,3.27043,3057.7,3057.1,3.27107]
[1732133684110,6.54095,3057.7,3057.0,3.27111]
[1732133684315,3.27067,3057.5,3057.0,3.27111]
[1732133685054,0.03637711,3057.4,3057.0,3.27111]
[1732133685253,0.03637711,3057.4,3057.2,3.27096]
[1732133685590,3.40208,3057.9,3057.4,3.27072]
[1732133685801,3.27005,3058.1,3057.5,3.27057]
[1732133685949,3.40142,3058.5,3057.6,0.03270526]
[1732133686148,3.40142,3058.5,3057.4,0.783]
[1732133686149,3.2698,3058.3,3057.7,3.27036]
[1732133686852,0.340142,3058.4,3057.9,3.27015]
[1732133687164,3.40143,3058.5,3057.9,3.27015]
[1732133687362,3.26968,3058.4,3058.0,0.7688]
[1732133687946,3.26981,3058.3,3058.0,0.7688]
[1732133688164,3.26981,3058.3,3057.8,3.27026]
[1732133689879,3.27028,3057.9,3057.4,0.7814]
[1732133690189,3.40208,3057.9,3057.2,4.0523]
[1732133690395,3.40208,3057.9,3057.2,4.45753]
[1732133690566,3.27038,3057.8,3057.2,4.0523]
[1732133690770,3.40208,3057.9,3057.3,3.27082]
[1732133691002,3.40208,3057.9,3057.2,0.7814]
[1732133691302,3.27032,3057.8,3057.3,3.27078]
[1732133691693,3.27032,3057.8,3057.3,3.27083]
[1732133691891,3.27032,3057.8,3057.0,3.27108]
[1732133692093,3.27057,3057.6,3057.0,3.27108]
[1732133692502,3.27048,3057.7,3057.2,3.27095]
[1732133693154,3.27033,3057.8,3057.2,6.54183]
[1732133693314,0.1318,3057.9,3057.3,3.27082]
[1732133693656,0.1318,3057.9,3057.3,3.27078]
[1732133693952,3.26997,3058.2,3057.6,4.09324]
[1732133694373,3.26997,3058.2,3057.7,3.27043]
[1732133694545,3.27,3058.1,3057.6,0.8228]
[1732133694861,3.26997,3058.2,3057.1,0.8228]
[1732133694862,3.2706,3057.6,3057.1,0.8228]
[1732133695063,3.2707,3057.5,3057.1,0.8228]
[1732133695553,3.27076,3057.4,3057.1,0.8228]
[1732133695861,3.27076,3057.4,3057.0,0.8228]
[1732133696162,3.4024,3057.6,3057.0,0.8228]
[1732133696317,3.2708,3057.4,3057.0,0.8228]
[1732133697060,3.27066,3057.5,3057.0,0.8228]
[1732133697231,3.40237,3057.6,3057.0,0.8228]
[1732133697432,6.67298,3057.6,3057.0,4.09391]
[1732133697685,3.40237,3057.6,3057.1,3.27106]
[1732133697848,3.2707,3057.5,3057.0,0.8228]
[1732133698044,3.27077,3057.4,3057.0,0.8228]
[1732133698677,3.27077,3057.4,3056.9,3.27118]
[1732133699240,3.27066,3057.5,3057.0,3.27112]
[1732133699579,3.27066,3057.5,3056.9,3.27118]
[1732133699876,3.27097,3057.2,3056.8,0.8228]
[1732133700074,3.27088,3057.3,3056.8,0.8228]
[1732133700261,0.03647597,3057.1,3056.8,0.8228]
[1732133700429,0.03647597,3057.1,3056.5,0.8228]
[1732133700430,3.27132,3056.9,3056.5,0.8228]
[1732133700633,0.16827597,3057.1,3056.6,3.27152]
[1732133700634,0.03639887,3056.8,3056.6,3.27152]
[1732133700841,3.4029,3057.1,3056.6,3.27152]
[1732133701081,0.03645027,3057.0,3056.6,3.27152]
[1732133701575,0.03645027,3057.0,3056.5,4.0945]
[1732133701784,0.03645027,3057.0,3056.5,0.8228]
[1732133701936,0.03645027,3057.0,3056.5,4.09449]
[1732133702139,3.27142,3056.8,3056.5,0.8228]
[1732133702479,3.27142,3056.8,3056.0,3.27218]
[1732133702480,3.30794317,3056.7,3056.1,0.8325]
[1732133702685,0.03637317,3056.7,3056.1,0.8325]
[1732133703048,3.27194,3056.3,3056.0,0.50163436]
[1732133703250,3.27195,3056.3,3056.0,0.50163436]
[1732133703448,0.03624462,3056.2,3055.8,0.8294]
[1732133703740,3.27225,3056.0,3055.5,0.8294]
[1732133703940,3.27242,3055.9,3055.5,0.8294]
[1732133704245,6.54501,3055.8,3055.0,3.27323]
[1732133704483,3.27286,3055.5,3055.1,0.8294]
[1732133704652,3.27286,3055.5,3054.8,6.547]
[1732133704653,3.27305,3055.3,3054.8,0.8294]
[1732133704854,0.043053,3055.2,3054.8,4.1029]
[1732133705149,6.54567,3055.5,3054.8,4.1029]
[1732133705150,3.27295,3055.4,3054.8,4.1029]
[1732133705345,0.04762578,3055.2,3055.0,3.27331]
[1732133705679,0.04766009,3055.3,3054.8,4.1029]
[1732133705883,0.04766009,3055.3,3054.8,4.51319]
[1732133706381,0.04766009,3055.3,3054.8,1.23969]
[1732133706605,3.32072009,3055.3,3054.8,1.23969]
[1732133706883,0.04762578,3055.2,3054.8,1.23969]
[1732133707034,0.04762578,3055.2,3054.9,3.27336]
[1732133707237,3.27217,3056.1,3054.9,3.27336]
[1732133707238,0.1318,3056.2,3055.4,3.27283]
[1732133707436,3.27234,3056.0,3055.2,3.27303]
[1732133707666,0.04786588,3055.9,3055.3,3.00202474]
[1732133707869,3.27188,3056.4,3055.8,4.07526]
[1732133708046,0.04800302,3056.3,3055.9,3.27228]
[1732133708249,3.27143,3056.8,3056.2,3.27203]
[1732133708450,3.27143,3056.8,3055.9,6.27428474]
[1732133708666,0.04331185,3056.7,3056.0,3.97987847]
[1732133708868,3.27161,3056.6,3056.1,3.27213]
[1732133709052,0.04325016,3056.5,3056.1,3.27213]
[1732133709250,3.40307,3057.0,3056.3,3.27189]
[1732133709485,3.40307,3057.0,3056.2,0.43070334]
[1732133709486,0.1318,3057.4,3056.4,0.8029]
[1732133709693,3.31467354,3056.9,3056.4,0.8029]
[1732133709983,3.27109,3057.1,3056.4,4.0747]
[1732133710184,0.04339797,3056.8,3056.4,5.10953447]
[1732133710496,0.04345965,3057.0,3056.8,3.27132]
[1732133710809,0.04345965,3057.0,3056.9,3.27128]
[1732133710960,3.27026,3057.9,3057.3,3.27077]
[1732133711290,0.1318,3058.1,3057.1,3.27107]
[1732133711495,3.4018,3058.1,3057.5,3.27056]
[1732133711789,0.03984332,3058.0,3057.5,3.27056]
[1732133712003,3.31002332,3058.0,3057.4,3.27072]
[1732133712205,3.27018,3058.0,3057.3,3.6381367]
[1732133712519,3.26994,3058.2,3057.6,3.27053]
[1732133712520,0.03368987,3057.9,3057.6,3.27053]
[1732133712677,0.03368987,3057.9,3057.5,3.27064]
[1732133712877,3.40153,3058.4,3057.7,3.27042]
[1732133713061,0.03663645,3058.3,3057.9,3.2702]
[1732133713563,3.4011,3058.8,3057.9,3.27015]
[1732133713564,3.26958,3058.5,3057.9,3.27015]
[1732133713788,0.03138066,3058.2,3057.9,3.27015]
[1732133713998,3.60954,3058.7,3058.0,3.2701]
[1732133714206,0.03658509,3058.1,3058.0,3.2701]
[1732133714384,3.26955,3058.6,3057.8,4.02439]
[1732133714589,0.1318,3058.8,3057.9,0.402439]
[1732133714901,3.26969,3058.4,3057.8,4.02439]
[1732133715326,0.03663645,3058.3,3057.9,3.27021]
[1732133715779,3.26964,3058.5,3057.9,3.27021]
[1732133715984,0.03661077,3058.2,3057.9,3.27021]
[1732133716180,3.26964,3058.5,3057.9,3.999682]
[1732133716675,0.03666213,3058.4,3057.9,3.999682]
[1732133717118,0.03666213,3058.4,3057.9,0.729472]
[1732133717269,3.30636213,3058.4,3057.9,0.729472]
[1732133717469,3.30636213,3058.4,3057.8,4.02439]
[1732133717710,0.03666213,3058.4,3057.9,3.27021]
[1732133718405,0.03666213,3058.4,3057.8,0.7541]
[1732133718609,0.03666213,3058.4,3058.3,3.26979]
[1732133718793,3.26905,3059.0,3058.3,3.26979]
[1732133719115,3.26944,3058.7,3058.0,3.27004]
[1732133719532,0.04027784,3058.6,3058.0,3.27004]
[1732133719734,0.04027784,3058.6,3058.3,3.26977]
[1732133720037,3.26932,3058.8,3058.1,6.53993]
[1732133720191,0.03162487,3058.5,3058.4,4.05208]
[1732133720385,0.1318,3059.5,3058.4,1.87426695]
[1732133720590,3.26858,3059.5,3058.8,3.26922]
[1732133721092,3.2684,3059.6,3058.8,3.26922]
[1732133721339,0.35395798,3059.6,3058.5,3.0]
[1732133721499,3.26887,3059.2,3058.4,0.7824]
[1732133721699,3.26871,3059.4,3058.7,3.26925]
[1732133721882,3.26872,3059.3,3058.7,3.26925]
[1732133722536,3.26891,3059.2,3058.5,3.26951]
[1732133722758,3.26911,3059.0,3058.4,0.7824]
[1732133723035,3.26911,3059.0,3058.3,6.53949]
[1732133723036,3.26926,3058.8,3058.3,3.26972]
[1732133723474,3.26915,3058.9,3058.1,4.42846106]
[1732133723670,3.26911,3059.0,3058.2,3.75289751]
[1732133723671,3.26926,3058.8,3058.2,3.75289751]
[1732133723967,3.26904,3059.0,3058.2,3.26981]
[1732133724283,3.26925,3058.8,3058.2,3.26981]
[1732133724586,3.26943,3058.7,3058.1,4.05796]
[1732133724745,3.26943,3058.7,3058.2,3.26989]
[1732133726032,3.26943,3058.7,3058.1,0.788]
[1732133726230,3.40078,3059.1,3058.1,1.2340474]
[1732133726456,3.40078,3059.1,3058.5,3.26951]
[1732133727348,3.40078,3059.1,3058.3,3.26973]
[1732133727349,3.26917,3058.9,3058.4,3.26967]
[1732133727549,3.26948,3058.6,3058.1,4.05795]
[1732133728444,3.26948,3058.6,3058.1,0.788]
[1732133728644,3.26965,3058.5,3058.1,0.788]
[1732133728850,3.26948,3058.6,3058.1,0.788]
[1732133729067,0.340078,3059.0,3058.1,0.788]
[1732133729230,6.53912,3058.6,3058.1,0.788]
[1732133729435,3.26955,3058.6,3057.9,3.27015]
[1732133729773,3.40079,3059.1,3058.5,3.26956]
[1732133730101,3.40079,3059.1,3058.5,3.26951]
[1732133730434,3.26904,3059.0,3058.5,3.26951]
[1732133730650,3.26904,3059.0,3058.3,3.2697]
[1732133730873,0.340084,3058.9,3058.3,3.2697]
[1732133731062,3.26926,3058.8,3058.3,3.2697]
[1732133731779,3.26926,3058.8,3058.1,3.26992]
[1732133731949,3.26945,3058.7,3058.1,3.26992]
[1732133732292,3.26979,3058.3,3057.8,0.7858]
[1732133732489,3.2699,3058.2,3057.8,0.7858]
[1732133732978,3.26985,3058.3,3057.7,3.27042]
[1732133733205,3.27001,3058.1,3057.5,4.05637]
[1732133733484,3.27011,3058.0,3057.5,0.7858]
[1732133733635,3.27046,3057.7,3057.3,1.307316]
[1732133734085,3.27038,3057.8,3057.2,4.05668]
[1732133734286,3.27015,3058.0,3057.3,0.40567]
[1732133734453,3.27015,3058.0,3057.4,3.27068]
[1732133734656,3.27015,3058.0,3057.5,3.27056]
[1732133734855,3.27012,3058.0,3057.5,3.27061]
[1732133735698,3.27021,3057.9,3057.3,3.27077]
[1732133735983,0.1318,3058.4,3057.4,0.03270301]
[1732133735984,3.26982,3058.3,3057.4,0.03270301]
[1732133736279,3.26991,3058.2,3057.6,3.27046]
[1732133736852,3.26991,3058.2,3057.7,3.27041]
[1732133737056,3.26991,3058.2,3057.6,3.27046]
[1732133737258,3.27001,3058.1,3057.6,3.27046]
[1732133737457,3.27017,3058.0,3057.4,3.27069]
[1732133737659,0.1318,3058.4,3057.5,0.327069]
[1732133737947,6.54015,3058.1,3057.5,3.597689]
[1732133738349,6.54015,3058.1,3057.6,0.6868379]
[1732133738580,0.1318,3058.4,3057.7,3.27042]
[1732133738789,3.2698,3058.3,3057.7,3.27042]
[1732133738973,3.26979,3058.3,3057.5,3.27057]
[1732133739173,3.27007,3058.1,3057.5,3.27057]
[1732133739382,6.53967,3058.3,3057.6,6.54096]
[1732133739580,3.26991,3058.2,3057.6,3.96546933]
[1732133739959,3.26991,3058.2,3057.2,0.7858]